bitfinex-derivatives/quotes_SOLF0:USTF0_20241230
["timestamp","ask_amount","ask_price","bid_price","bid_amount"]
[1735521539350,15.96062308,193.1,193.02,3.36]
[1735521540844,2.5954,193.04,193.02,3.36]
[1735521541451,15.96062308,193.1,193.02,3.36]
[1735521541652,3.0369,193.1,193.02,3.36]
[1735521541847,12.92372308,193.13,193.02,3.36]
[1735521542051,14.42992308,193.13,193.02,3.36]
[1735521542354,2.5949,193.08,193.02,3.36]
[1735521542852,2.5946,193.09,193.05,2.5951]
[1735521543053,2.5946,193.09,193.02,16.28372308]
[1735521543253,1.558,193.12,193.02,16.28372308]
[1735521543855,4.1522,193.12,193.07,2.5948]
[1735521544051,14.48172308,193.12,192.97,3.36]
[1735521544254,1.558,193.12,192.98,1.03637682]
[1735521544551,4.1522,193.12,193.07,2.5948]
[1735521546653,2.5942,193.12,193.07,2.5948]
[1735521546854,3.36,193.22,193.1,2.5945]
[1735521547055,16.28372308,193.22,193.1,5.9545]
[1735521547557,2.5939,193.15,193.1,5.9545]
[1735521547858,16.28372308,193.22,193.1,3.36]
[1735521548857,12.92372308,193.22,193.1,5.9545]
[1735521549359,3.1122,193.21,193.1,5.9545]
[1735521549554,2.5934,193.18,193.11,2.5943]
[1735521549749,3.1122,193.21,193.11,2.5943]
[1735521550155,2.5937,193.17,193.11,2.5942]
[1735521550356,3.1122,193.21,193.1,12.92372308]
[1735521550655,3.1122,193.21,193.11,3.36]
[1735521550860,1.5471,193.24,193.13,12.92372308]
[1735521551059,1.5471,193.24,193.16,12.92372308]
[1735521551252,4.1397,193.24,193.19,2.5932]
[1735521551649,1.5471,193.24,193.17,3.36]
[1735521551854,2.593,193.22,193.17,3.36]
[1735521552164,1.5471,193.24,193.17,3.36]
[1735521552861,2.5929,193.22,193.17,3.36]
[1735521553157,2.5929,193.22,193.11,0.1583]
[1735521553158,2.5936,193.17,193.11,2.5943]
[1735521553362,12.92372308,193.22,193.13,3.36]
[1735521553662,1.5506,193.21,193.13,3.36]
[1735521554162,3.0111,193.21,193.11,3.36]
[1735521554551,2.594,193.14,193.11,3.36]
[1735521555861,3.0111,193.21,193.11,3.36]
[1735521556062,2.5938,193.15,193.11,3.36]
[1735521556662,3.0111,193.21,193.11,3.36]
[1735521556861,3.0111,193.21,193.13,12.92372308]
[1735521557063,1.5471,193.24,193.13,12.92372308]
[1735521557264,2.593,193.22,193.16,2.5935]
[1735521557562,1.5471,193.24,193.17,3.36]
[1735521557761,2.5929,193.22,193.17,3.36]
[1735521558060,1.5471,193.24,193.17,3.36]
[1735521558458,2.5929,193.22,193.17,3.36]
[1735521558855,1.5471,193.24,193.17,3.36]
[1735521559672,4.1397,193.24,193.19,2.5932]
[1735521560061,1.5471,193.24,193.17,3.36]
[1735521561564,2.5927,193.23,193.18,2.5934]
[1735521562865,1.5471,193.24,193.16,12.92372308]
[1735521563168,1.5471,193.24,193.16,3.36]
[1735521563364,1.5471,193.24,193.14,3.36]
[1735521563872,2.5934,193.19,193.14,3.36]
[1735521564363,1.5471,193.24,193.14,3.36]
[1735521564562,2.5931,193.21,193.14,3.36]
[1735521564958,2.5935,193.18,193.14,3.36]
[1735521565867,1.5471,193.24,193.13,12.92372308]
[1735521566067,12.92372308,193.23,193.1,12.92372308]
[1735521566266,12.92372308,193.2,193.11,3.36]
[1735521566462,2.5942,193.12,193.08,2.5947]
[1735521566666,2.5942,193.12,193.08,5.9547]
[1735521566864,12.92372308,193.17,193.05,3.36]
[1735521567061,2.5946,193.1,193.05,3.36]
[1735521567364,12.92372308,193.14,193.02,3.36]
[1735521568066,7.9209,193.16,193.02,3.36]
[1735521568067,12.92372308,193.11,193.02,3.36]
[1735521568671,2.5947,193.09,193.02,3.36]
[1735521568870,14.43912308,193.08,192.98,1.03637682]
[1735521569061,3.0198,193.07,192.98,1.03637682]
[1735521569669,12.92372308,193.05,192.92,16.40372308]
[1735521569869,194.0,193.18,192.92,3.48]
[1735521570064,12.92372308,193.15,193.02,12.92372308]
[1735521570274,23.75358259,193.17,193.03,3.48]
[1735521570475,23.75358259,193.17,193.04,3.48]
[1735521570677,2.5941,193.13,193.04,3.48]
[1735521570978,3.1049,193.17,193.04,24.12868259]
[1735521571972,3.1049,193.17,193.11,2.5943]
[1735521572180,3.1049,193.17,193.11,6.0743]
[1735521572383,3.1049,193.17,193.12,2.5941]
[1735521572879,1.5486,193.21,193.11,3.48]
[1735521573473,4.1416,193.21,193.14,2.5939]
[1735521573779,1.5486,193.21,193.11,3.48]
[1735521574172,1.6086,193.22,193.11,3.48]
[1735521574767,1.6086,193.22,193.07,20.64868259]
[1735521574977,1.6086,193.22,193.08,3.48]
[1735521577477,1.6086,193.22,193.1,20.64868259]
[1735521577679,1.6086,193.22,193.18,2.5933]
[1735521577874,1.6086,193.22,193.19,3.48]
[1735521578473,1.5589,193.28,193.19,3.48]
[1735521578873,144.85604934,193.4,193.19,24.12868259]
[1735521579076,1.5005,193.37,193.22,20.64868259]
[1735521579383,2.591,193.36,193.28,2.592]
[1735521579583,3.1481,193.39,193.29,3.48]
[1735521579782,4.6486,193.39,193.3,3.48]
[1735521579976,2.5909,193.37,193.31,3.48]
[1735521580180,20.64868259,193.37,193.26,3.48]
[1735521580475,20.64868259,193.37,193.22,20.64868259]
[1735521580681,2.5916,193.32,193.25,2.5924]
[1735521580875,20.64868259,193.37,193.25,2.5924]
[1735521581084,20.64868259,193.37,193.23,3.48]
[1735521581287,4.6486,193.39,193.23,3.48]
[1735521581675,2.5909,193.37,193.29,2.5918]
[1735521581875,2.5909,193.37,193.3,3.48]
[1735521582080,4.6486,193.39,193.3,3.48]
[1735521582282,20.64868259,193.37,193.26,3.48]
[1735521583385,20.64868259,193.34,193.24,1.0349824]
[1735521583690,2.592,193.29,193.24,1.0349824]
[1735521584184,2.5922,193.27,193.24,1.0349824]
[1735521584384,20.64868259,193.34,193.24,1.0349824]
[1735521585687,2.5921,193.28,193.24,1.0349824]
[1735521586389,20.64868259,193.34,193.24,1.0349824]
[1735521586588,4.6486,193.39,193.24,1.0349824]
[1735521586589,20.64868259,193.37,193.24,1.0349824]
[1735521586785,4.6486,193.39,193.24,1.0349824]
[1735521587388,4.6486,193.39,193.27,2.5921]
[1735521587691,4.6486,193.39,193.28,3.48]
[1735521587988,2.5912,193.35,193.28,3.48]
[1735521588187,4.6486,193.39,193.28,3.48]
[1735521588389,4.6486,193.39,193.28,6.0721]
[1735521588589,4.6486,193.39,193.28,3.48]
[1735521588992,2.5914,193.33,193.28,3.48]
[1735521589185,20.64868259,193.38,193.25,3.48]
[1735521590692,2.591,193.36,193.25,24.12868259]
[1735521590886,4.6486,193.39,193.25,24.12868259]
[1735521591192,2.591,193.36,193.26,1.506]
[1735521591791,2.5913,193.34,193.27,2.5921]
[1735521591993,4.6486,193.39,193.27,2.5921]
[1735521592191,4.6486,193.39,193.28,3.48]
[1735521592692,4.6486,193.39,193.24,1.0349824]
[1735521592693,20.64868259,193.34,193.24,1.0349824]
[1735521592990,24.12868259,193.38,193.24,1.0349824]
[1735521593386,2.5918,193.3,193.24,3.6274824]
[1735521594292,2.5921,193.28,193.24,1.0349824]
[1735521595087,24.12868259,193.38,193.24,1.0349824]
[1735521595986,2.5923,193.27,193.24,1.0349824]
[1735521596293,20.64868259,193.36,193.24,1.0349824]
[1735521597684,3.48,193.38,193.24,1.0349824]
[1735521597887,2.5915,193.33,193.26,2.5923]
[1735521598688,2.5915,193.33,193.24,13.91242857]
[1735521598893,2.5912,193.35,193.27,12.87744617]
[1735521599495,2.591,193.37,193.31,2.5916]
[1735521599703,4.6486,193.39,193.31,3.56]
[1735521600203,2.5911,193.35,193.31,3.56]
[1735521601301,2.5913,193.34,193.31,3.56]
[1735521601890,4.6486,193.39,193.31,3.56]
[1735521602295,25.24505326,193.39,193.31,3.56]
[1735521602701,25.24505326,193.39,193.27,3.56]
[1735521602895,25.24505326,193.39,193.27,6.1522]
[1735521603499,20.59645326,193.36,193.24,1.0349824]
[1735521603697,20.59645326,193.33,193.24,1.0349824]
[1735521604297,20.59645326,193.36,193.24,1.0349824]
[1735521604496,2.5917,193.31,193.26,2.5924]
[1735521604705,20.59645326,193.36,193.24,1.0349824]
[1735521605097,2.5917,193.31,193.25,2.5924]
[1735521605603,2.5917,193.31,193.24,1.0349824]
[1735521605799,2.592,193.29,193.24,3.6275824]
[1735521606003,20.59645326,193.3,193.24,1.0349824]
[1735521606201,1.4887,193.28,193.24,1.0349824]
[1735521606600,2.5925,193.25,193.24,1.0349824]
[1735521607200,2.5925,193.25,193.19,3.56]
[1735521607400,1.4887,193.28,193.19,3.56]
[1735521607708,1.4887,193.28,193.11,1.6792]
[1735521607709,2.5926,193.24,193.17,3.56]
[1735521608006,20.59645326,193.27,193.16,3.56]
[1735521608706,2.5926,193.24,193.16,3.56]
[1735521609202,1.4887,193.28,193.16,3.56]
[1735521609409,1.4887,193.28,193.17,20.59645326]
[1735521610701,2.5924,193.26,193.21,2.5929]
[1735521610908,1.4887,193.28,193.22,3.56]
[1735521611104,1.4887,193.28,193.21,3.56]
[1735521611306,2.5924,193.26,193.21,6.1529]
[1735521611506,1.4887,193.28,193.21,3.56]
[1735521611805,2.5925,193.26,193.21,3.56]
[1735521612105,1.4887,193.28,193.21,3.56]
[1735521613708,4.0808,193.28,193.23,2.5927]
[1735521614113,1.4887,193.28,193.21,3.56]
[1735521614307,2.5924,193.26,193.21,6.153]
[1735521614818,2.5924,193.26,193.21,3.56]
[1735521615209,1.4887,193.28,193.21,3.56]
[1735521615610,1.4887,193.28,193.2,3.56]
[1735521616011,1.4887,193.28,193.17,2.5935]
[1735521616012,2.5929,193.22,193.17,2.5935]
[1735521616215,1.4887,193.28,193.18,3.56]
[1735521616612,2.5928,193.23,193.18,3.56]
[1735521616914,1.4887,193.28,193.18,3.56]
[1735521617118,2.5925,193.25,193.18,3.56]
[1735521617418,1.4887,193.28,193.18,3.56]
[1735521618012,1.4887,193.28,193.11,1.6792]
[1735521618013,1.4887,193.28,193.11,20.59645326]
[1735521618218,20.59645326,193.24,193.1,3.56]
[1735521618411,24.15645326,193.24,193.1,3.56]
[1735521618612,5.0487,193.28,193.12,20.59645326]
[1735521619717,2.5928,193.23,193.17,2.5934]
[1735521620015,2.5928,193.23,193.16,3.56]
[1735521620519,2.5928,193.23,193.18,2.5933]
[1735521620714,5.0487,193.28,193.16,3.56]
[1735521621619,2.5927,193.24,193.19,2.5933]
[1735521621814,1.4887,193.28,193.16,3.56]
[1735521622007,1.4887,193.28,193.18,20.59645326]
[1735521622213,2.5918,193.31,193.22,12.88043996]
[1735521622413,12.88043996,193.35,193.23,3.56]
[1735521622613,2.5918,193.31,193.26,2.5924]
[1735521622817,12.88043996,193.35,193.23,3.56]
[1735521623220,2.5918,193.31,193.25,2.5924]
[1735521624816,2.5918,193.31,193.26,2.5923]
[1735521625011,12.88043996,193.35,193.23,3.56]
[1735521625313,4.7538,193.36,193.28,2.592]
[1735521625517,4.7538,193.36,193.25,12.88043996]
[1735521625718,2.5912,193.35,193.25,12.88043996]
[1735521626010,2.5912,193.35,193.3,2.5917]
[1735521626216,4.7538,193.36,193.29,3.56]
[1735521626217,7.3449,193.36,193.29,3.56]
[1735521626628,4.7538,193.36,193.29,3.56]
[1735521627407,2.5914,193.33,193.29,3.56]
[1735521627917,4.7538,193.36,193.3,2.5917]
[1735521628218,4.7538,193.36,193.29,3.56]
[1735521629017,4.7538,193.36,193.25,12.88043996]
[1735521629320,4.7538,193.36,193.26,3.58]
[1735521629618,2.5916,193.32,193.27,2.5922]
[1735521629818,4.7538,193.36,193.26,3.58]
[1735521630413,2.5912,193.35,193.26,3.58]
[1735521631016,2.5915,193.33,193.27,2.5921]
[1735521632021,12.88043996,193.35,193.26,3.58]
[1735521632222,4.7538,193.36,193.26,3.58]
[1735521632622,4.7538,193.36,193.26,6.1723]
[1735521632916,4.7538,193.36,193.26,3.58]
[1735521633118,3.58,193.35,193.22,16.46043996]
[1735521633321,2.5917,193.32,193.24,2.5925]
[1735521633521,3.58,193.35,193.22,16.46043996]
[1735521633715,3.58,193.35,193.22,12.88043996]
[1735521634019,2.5918,193.31,193.25,2.5924]
[1735521634815,3.58,193.35,193.22,16.46043996]
[1735521635718,3.58,193.35,193.22,12.88043996]
[1735521635915,4.7538,193.36,193.22,12.88043996]
[1735521636121,4.7538,193.36,193.25,12.88043996]
[1735521636723,4.7538,193.36,193.28,12.88043996]
[1735521637020,12.88043996,193.42,193.29,3.58]
[1735521637222,2.5908,193.39,193.29,3.58]
[1735521637822,12.88043996,193.42,193.29,3.58]
[1735521638035,2.5908,193.38,193.33,2.5913]
[1735521638224,12.88043996,193.42,193.31,12.88043996]
[1735521638621,4.5698,193.43,193.31,12.88043996]
[1735521639223,2.5905,193.41,193.31,12.88043996]
[1735521639424,4.5698,193.43,193.34,12.88043996]
[1735521639623,4.5698,193.43,193.35,3.58]
[1735521640221,17.45023996,193.43,193.35,3.58]
[1735521640825,4.5698,193.43,193.35,3.58]
[1735521641030,12.88043996,193.42,193.35,3.58]
[1735521641627,12.88043996,193.42,193.3,5.1646]
[1735521641827,12.88043996,193.39,193.29,3.58]
[1735521642034,12.88043996,193.39,193.25,12.88043996]
[1735521642333,12.88043996,193.39,193.26,3.58]
[1735521642638,12.88043996,193.36,193.25,12.88043996]
[1735521642834,1.493,193.35,193.25,3.58]
[1735521643232,4.5152,193.35,193.25,3.58]
[1735521643435,4.5152,193.35,193.26,2.5924]
[1735521643436,2.5918,193.32,193.26,2.5924]
[1735521643736,12.88043996,193.33,193.22,12.88043996]
[1735521644138,12.88043996,193.33,193.2,3.58]
[1735521645639,2.592,193.3,193.22,2.5929]
[1735521645939,12.88043996,193.33,193.22,2.5929]
[1735521646140,2.592,193.3,193.24,2.5926]
[1735521646432,2.592,193.3,193.2,3.58]
[1735521646637,4.5152,193.35,193.22,12.88043996]
[1735521647434,2.5917,193.32,193.22,12.88043996]
[1735521647636,4.5152,193.35,193.25,12.88043996]
[1735521647936,2.5915,193.34,193.28,2.5922]
[1735521648136,4.5152,193.35,193.26,3.58]
[1735521648537,2.591,193.37,193.32,2.5916]
[1735521648736,12.88043996,193.39,193.28,12.88043996]
[1735521649138,2.5907,193.39,193.28,12.88043996]
[1735521649637,3.58,193.41,193.31,12.88043996]
[1735521649838,3.58,193.41,193.36,2.591]
[1735521649839,2.5905,193.41,193.36,2.591]
[1735521650638,2.5906,193.41,193.34,2.5913]
[1735521650842,12.88043996,193.42,193.31,12.88043996]
[1735521651341,2.5904,193.41,193.31,12.88043996]
[1735521651634,12.88043996,193.45,193.31,12.88043996]
[1735521652940,2.5907,193.39,193.34,2.5914]
[1735521653129,12.88043996,193.45,193.31,12.88043996]
[1735521654438,2.5906,193.4,193.35,2.5912]
[1735521656243,12.88043996,193.45,193.31,12.88043996]
[1735521656436,4.5803,193.46,193.31,16.46043996]
[1735521656437,12.88043996,193.42,193.31,16.46043996]
[1735521656838,2.5907,193.39,193.34,2.5913]
[1735521658837,2.5906,193.4,193.36,2.5911]
[1735521660239,12.88043996,193.45,193.31,16.46043996]
[1735521660240,2.5902,193.43,193.38,2.5908]
[1735521660444,4.5803,193.46,193.34,12.88043996]
[1735521661041,2.5901,193.44,193.37,2.5909]
[1735521661239,2.5901,193.44,193.37,3.58]
[1735521661946,3.58,193.5,193.39,2.5907]
[1735521662148,12.88043996,193.48,193.39,2.5907]
[1735521663041,2.5901,193.44,193.37,3.58]
[1735521663245,12.88043996,193.48,193.41,2.5904]
[1735521663550,12.88043996,193.48,193.37,16.46043996]
[1735521663851,2.5899,193.45,193.37,16.46043996]
[1735521664047,12.88043996,193.44,193.37,3.58]
[1735521664243,12.88043996,193.44,193.28,1.0168]
[1735521664244,12.88043996,193.44,193.33,3.58]
[1735521664649,2.5908,193.39,193.33,3.58]
[1735521665347,12.88043996,193.44,193.33,3.58]
[1735521666155,12.88043996,193.41,193.32,2.5916]
[1735521666349,12.88043996,193.41,193.29,12.88043996]
[1735521666552,4.663,193.4,193.27,3.58]
[1735521666953,2.5911,193.37,193.28,2.5922]
[1735521667151,4.663,193.4,193.27,3.58]
[1735521667755,12.88043996,193.38,193.26,12.88043996]
[1735521667949,12.88043996,193.38,193.25,3.58]
[1735521668145,12.88043996,193.35,193.23,71.42017489]
[1735521668345,16.46043996,193.35,193.22,3.58]
[1735521668656,12.88043996,193.32,193.22,3.58]
[1735521668855,2.5925,193.26,193.22,3.58]
[1735521669549,2.5921,193.29,193.23,2.5928]
[1735521669752,1.5718,193.31,193.23,12.88043996]
[1735521670553,85.76841716,193.42,193.23,12.88043996]
[1735521670757,1.5955,193.37,193.26,12.88043996]
[1735521672057,2.5918,193.31,193.26,15.47283996]
[1735521672257,1.5955,193.37,193.23,12.88043996]
[1735521672454,12.88043996,193.32,193.22,3.58]
[1735521673259,2.5924,193.27,193.22,3.58]
[1735521673455,16.46043996,193.32,193.2,12.88043996]
[1735521673652,16.46043996,193.32,193.23,2.5928]
[1735521673854,2.5917,193.32,193.23,12.88043996]
[1735521674053,12.88043996,193.35,193.24,2.5927]
[1735521674553,12.88043996,193.35,193.23,12.88043996]
[1735521674756,12.88043996,193.32,193.2,12.88043996]
[1735521674955,12.88043996,193.29,193.17,12.88043996]
[1735521675150,12.88043996,193.26,193.14,12.88043996]
[1735521675351,5.1307,193.28,193.11,60.09104764]
[1735521675352,12.88043996,193.23,193.11,72.9714876]
[1735521675557,12.88043996,193.23,193.11,12.88043996]
[1735521675558,1.5227,193.22,193.11,12.88043996]
[1735521675858,3.0891,193.22,193.11,12.88043996]
[1735521676758,2.5934,193.2,193.12,2.5942]
[1735521677059,3.0891,193.22,193.12,2.5942]
[1735521677654,3.0891,193.22,193.11,12.88043996]
[1735521677956,12.88043996,193.2,193.09,3.58]
[1735521678156,1.557,193.19,193.08,12.88043996]
[1735521678754,1.557,193.19,193.08,15.47523996]
[1735521678952,1.557,193.19,193.07,3.58]
[1735521679158,12.88043996,193.17,193.05,12.88043996]
[1735521679450,12.88043996,193.14,193.02,12.88043996]
[1735521679651,12.88043996,193.14,193.0,3.58]
[1735521679856,12.88043996,193.14,192.99,14.42233996]
[1735521679857,12.88043996,193.11,192.99,14.42233996]
[1735521680056,4.641,193.1,192.99,16.46043996]
[1735521680252,12.88043996,193.08,192.98,2.96078116]
[1735521680962,12.88043996,193.08,193.0,2.5959]
[1735521681255,12.88043996,193.08,192.96,16.46043996]
[1735521681256,4.641,193.1,192.99,12.88043996]
[1735521682363,3.58,193.16,193.02,20.65347449]
[1735521682662,4.5825,193.19,193.05,20.65347449]
[1735521682859,4.5825,193.19,193.08,20.65347449]
[1735521683162,4.5825,193.19,193.09,3.58]
[1735521684565,2.5932,193.21,193.09,3.58]
[1735521684858,1.523,193.23,193.09,3.58]
[1735521685854,2.5936,193.18,193.12,2.5943]
[1735521686354,2.5936,193.18,193.09,3.58]
[1735521686355,1.523,193.23,193.09,3.58]
[1735521686555,2.5937,193.17,193.1,2.5945]
[1735521686756,1.523,193.23,193.09,3.58]
[1735521686959,1.523,193.23,193.11,20.65347449]
[1735521687362,4.1159,193.23,193.11,20.65347449]
[1735521688063,1.523,193.23,193.11,20.65347449]
[1735521688264,2.5933,193.2,193.11,20.65347449]
[1735521689464,2.5933,193.2,193.14,2.594]
[1735521689667,1.523,193.23,193.11,20.65347449]
[1735521689967,1.523,193.23,193.17,2.5936]
[1735521690265,1.523,193.23,193.11,20.65347449]
[1735521690266,2.593,193.22,193.15,3.56]
[1735521690460,20.65347449,193.3,193.2,2.5932]
[1735521690661,4.5407,193.3,193.17,20.65347449]
[1735521691275,4.5407,193.3,193.2,20.65347449]
[1735521691567,3.56,193.35,193.21,3.56]
[1735521691768,3.56,193.35,193.26,2.5924]
[1735521691769,2.5917,193.32,193.26,2.5924]
[1735521692272,5.018,193.35,193.21,3.56]
[1735521692465,1.458,193.35,193.29,2.592]
[1735521693472,1.458,193.35,193.27,3.56]
[1735521693670,27.27077449,193.42,193.27,3.56]
[1735521693873,1.458,193.41,193.27,3.56]
[1735521694069,2.5908,193.39,193.27,3.56]
[1735521694265,1.458,193.41,193.29,20.65347449]
[1735521694871,4.0486,193.41,193.32,2.5916]
[1735521695071,4.0486,193.41,193.29,20.65347449]
[1735521695271,1.458,193.41,193.29,20.65347449]
[1735521697575,2.5906,193.4,193.34,2.5912]
[1735521698169,2.5906,193.4,193.29,20.65347449]
[1735521698170,1.458,193.41,193.36,2.591]
[1735521698367,1.458,193.41,193.33,3.56]
[1735521698574,44.07424709,193.46,193.33,3.56]
[1735521698773,3.096,193.45,193.33,3.56]
[1735521698973,2.5902,193.43,193.37,2.5908]
[1735521699269,3.096,193.45,193.33,3.56]
[1735521699474,2.5902,193.43,193.37,2.5909]
[1735521699877,2.5902,193.43,193.33,3.56]
[1735521700070,3.096,193.45,193.35,20.65347449]
[1735521700778,3.096,193.45,193.41,2.5904]
[1735521701278,1.541,193.49,193.41,2.5904]
[1735521701486,2.5896,193.48,193.41,2.5904]
[1735521701777,20.65347449,193.48,193.34,3.56]
[1735521702175,2.59,193.45,193.34,3.56]
[1735521702680,2.59,193.45,193.39,2.5907]
[1735521703273,1.541,193.49,193.34,24.21347449]
[1735521703680,2.5898,193.46,193.35,24.21347449]
[1735521703882,1.541,193.49,193.39,2.5906]
[1735521704178,2.5898,193.46,193.35,24.21347449]
[1735521704375,1.541,193.49,193.43,2.5902]
[1735521705178,1.541,193.49,193.36,1.5768]
[1735521705179,22.10927449,193.54,193.41,3.56]
[1735521705480,22.10927449,193.54,193.38,20.65347449]
[1735521705481,22.10927449,193.54,193.42,3.56]
[1735521705875,1.4558,193.54,193.42,3.56]
[1735521706679,24.21347449,193.57,193.5,2.5892]
[1735521706879,24.21347449,193.57,193.42,3.56]
[1735521707182,2.5892,193.51,193.45,2.5898]
[1735521707385,20.65347449,193.54,193.42,3.56]
[1735521707880,3.56,193.57,193.37,1.1723]
[1735521707881,20.65347449,193.51,193.37,1.0149]
[1735521708086,20.65347449,193.48,193.36,1.5768]
[1735521708482,2.5902,193.43,193.36,5.1368]
[1735521708683,2.5902,193.43,193.36,3.56]
[1735521708884,20.65347449,193.48,193.37,2.591]
[1735521709081,2.5903,193.42,193.36,3.56]
[1735521709388,4.574,193.5,193.36,3.56]
[1735521709587,2.5902,193.43,193.36,3.56]
[1735521709983,25.22747449,193.5,193.4,2.5905]
[1735521709984,2.5899,193.45,193.4,2.5905]
[1735521710187,25.22747449,193.5,193.36,3.56]
[1735521711689,25.22747449,193.5,193.33,20.65347449]
[1735521711892,25.22747449,193.5,193.36,3.56]
[1735521712591,4.574,193.5,193.36,3.56]
[1735521712787,2.59,193.44,193.39,2.5907]
[1735521713110,20.65347449,193.49,193.36,3.56]
[1735521713323,2.5899,193.45,193.36,3.56]
[1735521713613,20.65347449,193.49,193.36,3.56]
[1735521714120,2.59,193.45,193.39,2.5907]
[1735521714519,2.59,193.45,193.39,2.5906]
[1735521715214,2.5898,193.46,193.4,2.5906]
[1735521715918,2.5899,193.45,193.4,2.5906]
[1735521716503,2.5897,193.47,193.41,2.5904]
[1735521717007,12.86331874,193.48,193.41,2.5904]
[1735521717205,2.5898,193.46,193.41,2.5904]
[1735521717413,4.574,193.5,193.38,12.86331874]
[1735521717890,7.1634,193.5,193.44,2.59]
[1735521718495,2.5894,193.49,193.44,2.59]
[1735521718700,44.03890364,193.6,193.47,2.5896]
[1735521718999,12.86331874,193.54,193.47,2.5896]
[1735521719202,12.86331874,193.54,193.42,3.58]
[1735521719498,12.86331874,193.54,193.47,2.5896]
[1735521719999,2.589,193.52,193.47,2.5896]
[1735521720599,2.5894,193.49,193.44,2.5899]
[1735521720800,12.86331874,193.54,193.42,3.58]
[1735521721400,2.5894,193.49,193.44,2.5899]
[1735521721601,12.86331874,193.54,193.42,3.58]
[1735521721998,12.86331874,193.54,193.43,2.5902]
[1735521722197,12.86331874,193.54,193.42,3.58]
[1735521723301,12.86331874,193.54,193.42,5.1681]
[1735521724504,2.5892,193.51,193.42,5.1681]
[1735521724998,2.5892,193.51,193.44,2.5899]
[1735521725200,2.5892,193.51,193.42,5.1681]
[1735521726001,12.86331874,193.55,193.42,5.1681]
[1735521726397,12.86331874,193.55,193.44,12.86331874]
[1735521726696,2.5889,193.53,193.44,12.86331874]
[1735521727303,4.6526,193.59,193.44,12.86331874]
[1735521727997,12.86331874,193.51,193.37,3.58]
[1735521728311,2.5899,193.45,193.4,2.5906]
[1735521728604,12.86331874,193.51,193.38,3.58]
[1735521728799,2.5898,193.47,193.42,2.5903]
[1735521728999,12.86331874,193.51,193.38,3.58]
[1735521729600,3.58,193.52,193.39,2.5906]
[1735521729601,12.86331874,193.48,193.39,2.5906]
[1735521729797,12.86331874,193.48,193.38,3.58]
[1735521730001,2.5904,193.42,193.38,3.58]
[1735521730803,1.4775,193.47,193.38,3.58]
[1735521731005,2.5902,193.43,193.38,3.58]
[1735521731206,1.4775,193.47,193.4,2.5906]
[1735521731505,4.0672,193.47,193.38,3.58]
[1735521731808,1.4775,193.47,193.38,3.58]
[1735521733211,4.0672,193.47,193.42,2.5903]
[1735521733609,3.0221,193.5,193.38,3.58]
[1735521733805,2.5895,193.48,193.43,2.5902]
[1735521734008,3.0221,193.5,193.38,3.58]
[1735521734208,4.0577,193.5,193.43,2.5902]
[1735521734405,20.89416804,193.61,193.44,3.58]
[1735521734609,20.89416804,193.61,193.49,12.86331874]
[1735521734811,2.5883,193.58,193.53,2.5888]
[1735521735613,2.5884,193.57,193.51,2.589]
[1735521735810,2.5884,193.57,193.5,3.58]
[1735521736210,2.5879,193.6,193.55,2.5885]
[1735521736807,2.5881,193.59,193.5,3.58]
[1735521737921,2.5883,193.57,193.5,3.58]
[1735521738117,20.89416804,193.61,193.5,3.58]
[1735521738714,2.5883,193.58,193.5,3.58]
[1735521739320,20.89416804,193.61,193.5,3.58]